bitfinex/quotes_ETHUSD_20220202
["timestamp","ask_amount","ask_price","bid_price","bid_amount"]
[1643821128652,0.00295813,2672.1,2671.4,0.93596]
[1643821128653,0.20801135,2671.8,2671.4,0.93596]
[1643821129052,0.20801135,2671.8,2671.3,6.9472]
[1643821129252,0.20801135,2671.8,2671.4,0.187]
[1643821130054,0.20801135,2671.8,2671.5,0.936025]
[1643821130254,0.20801135,2671.8,2671.4,2.0588724]
[1643821130453,0.20801135,2671.8,2671.4,1.8718724]
[1643821132406,0.20801135,2671.8,2671.3,7.67887362]
[1643821132601,0.20801135,2671.8,2671.3,4.58167362]
[1643821133002,0.20801135,2671.8,2671.3,3.85]
[1643821133203,0.20801135,2671.8,2671.2,0.19208405]
[1643821133204,1.85416546,2671.8,2671.2,0.19208405]
[1643821133405,0.70997411,2671.6,2671.2,0.19208405]
[1643821134006,0.70997411,2671.6,2671.2,0.187]
[1643821134205,0.70997411,2671.6,2671.2,0.19208383]
[1643821134406,1.64634411,2671.6,2671.2,0.19208383]
[1643821135254,2.58271411,2671.6,2671.2,0.187]
[1643821135453,2.58271411,2671.6,2671.2,0.00508383]
[1643821135853,0.18623882,2671.5,2671.2,0.00508383]
[1643821136252,0.89621293,2671.5,2670.8,1.1752]
[1643821136454,0.2183615,2670.9,2670.8,1.1752]
[1643821136653,0.70997411,2671.5,2670.8,1.49553788]
[1643821136854,1.12357,2671.6,2670.8,1.49553788]
[1643821136855,1.64634411,2671.6,2670.8,2.61038513]
[1643821137453,1.64634411,2671.6,2670.8,2.31038513]
[1643821137757,1.64634411,2671.6,2671.1,0.00508379]
[1643821138354,0.70997411,2671.6,2671.1,0.00508379]
[1643821138613,0.187,2671.7,2671.1,0.00508379]
[1643821138812,0.94745951,2672.0,2671.3,0.9360377]
[1643821138813,0.89697411,2672.0,2671.3,0.9360377]
[1643821139014,0.00288478,2671.5,2671.3,1.1230377]
[1643821140114,0.00288478,2671.5,2671.3,1.88164619]
[1643821141115,0.00288478,2671.5,2671.3,1.69464619]
[1643821143553,0.00288478,2671.5,2671.3,0.75860849]
[1643821144252,0.70997411,2672.0,2671.3,0.75860849]
[1643821145252,0.70997411,2671.9,2671.3,0.75860849]
[1643821145456,0.93063133,2671.9,2671.3,0.75860849]
[1643821146113,1.86679133,2671.9,2671.3,0.75860849]
[1643821147514,0.53807066,2671.8,2671.3,0.75860849]
[1643821147917,0.53807066,2671.8,2671.2,1.24519797]
[1643821148124,1.64618411,2671.7,2671.2,0.72781586]
[1643821148318,0.53807066,2671.6,2671.2,1.02311789]
[1643821148516,0.53807066,2671.6,2671.2,0.3]
[1643821148717,0.53807066,2671.6,2671.2,0.00472978]
[1643821148920,1.24804477,2671.6,2671.2,0.00472978]
[1643821149117,0.17504566,2671.3,2671.2,0.00472978]
[1643821149317,0.71311632,2671.3,2671.2,0.00472978]
[1643821149518,0.71311632,2671.3,2670.9,2.99403203]
[1643821149756,0.53807066,2671.2,2670.9,2.1722673]
[1643821149960,0.53807066,2671.2,2671.1,0.0047296]
[1643821150761,0.53807066,2671.2,2670.8,0.187]
[1643821150957,0.21400349,2670.8,2670.6,4.40456217]
[1643821151163,0.53807066,2670.7,2670.6,4.40456217]
[1643821151362,0.187,2671.4,2670.6,1.8732442]
[1643821151561,0.54152938,2671.3,2670.7,1.02158203]
[1643821151760,0.54152938,2671.2,2671.0,0.83610036]
[1643821152061,0.70997411,2671.6,2671.0,0.83610036]
[1643821152062,0.54152938,2671.1,2671.0,0.83610036]
[1643821152560,0.54152938,2671.6,2671.0,0.83610036]
[1643821152760,0.72852938,2671.6,2670.9,0.30472511]
[1643821152962,0.54152938,2671.5,2670.9,0.30472511]
[1643821153160,0.54152938,2671.5,2670.9,0.3]
[1643821153619,0.54152938,2671.5,2671.1,0.00472494]
[1643821154210,0.00287862,2671.4,2671.1,0.00472494]
[1643821154411,0.00287862,2671.4,2671.0,0.04]
[1643821154613,0.00287862,2671.4,2671.2,0.00472491]
[1643821155012,0.20575304,2671.3,2671.2,0.00472491]
[1643821155511,0.20575304,2671.3,2671.0,0.04]
[1643821155713,0.54152938,2671.2,2671.0,0.04]
[1643821155915,0.54152938,2671.2,2671.1,0.00472249]
[1643821156113,2.08075175,2671.2,2671.1,0.00472249]
[1643821156312,0.54152938,2671.2,2671.1,0.00472249]
[1643821156913,0.54152938,2671.2,2671.0,0.04]
[1643821157114,0.54152938,2671.2,2671.0,0.04472256]
[1643821157563,1.25150349,2671.2,2671.0,0.04472256]
[1643821157754,3.24152938,2671.1,2671.0,0.04472256]
[1643821157954,0.54152938,2671.1,2671.0,0.04472256]
[1643821158154,0.54152938,2671.1,2671.0,0.04]
[1643821158357,0.7100495,2671.1,2671.0,0.04472259]
[1643821158556,1.25157888,2671.1,2671.0,0.04472259]
[1643821159355,1.25157888,2671.1,2671.0,0.04]
[1643821159553,1.25445415,2671.2,2671.0,0.04]
[1643821159755,0.54152938,2671.1,2671.0,0.04]
[1643821159953,0.00287527,2671.2,2671.0,2.24]
[1643821159954,0.54440465,2671.2,2671.0,2.24]
[1643821160554,0.54152938,2671.1,2671.0,2.54]
[1643821160754,0.54152938,2671.1,2671.0,3.55548406]
[1643821161006,0.00287527,2671.2,2671.0,6.53881021]
[1643821161212,0.00287527,2671.2,2671.1,1.19789928]
[1643821161506,0.00287527,2671.2,2671.1,1.49789928]
[1643821161929,0.00287527,2671.2,2671.1,0.487]
[1643821162106,0.00287527,2671.2,2671.1,1.49818213]
[1643821162306,0.00287527,2671.2,2671.1,1.19818213]
[1643821162706,0.00033566,2671.2,2671.1,1.19818213]
[1643821163105,0.00033566,2671.2,2671.1,1.01118213]
[1643821163305,0.54786485,2671.2,2671.1,1.01118213]
[1643821163506,0.00033566,2671.2,2671.1,1.01118213]
[1643821163909,0.00288508,2671.2,2671.1,1.01118213]
[1643821164108,0.55041427,2671.2,2671.1,1.01118213]
[1643821164306,0.00288508,2671.2,2671.1,1.01118213]
[1643821164753,0.00288508,2671.2,2671.0,5.35314967]
[1643821164957,0.00288508,2671.2,2671.1,1.00807011]
[1643821165553,0.00288508,2671.2,2671.0,5.3484268]
[1643821165554,0.00288508,2671.2,2671.0,5.35267941]
[1643821166156,0.00288508,2671.2,2671.1,1.00036753]
[1643821166459,0.00288508,2671.2,2671.0,5.0484268]
[1643821166656,0.00288508,2671.2,2671.0,5.05269529]
[1643821167656,0.00288508,2671.2,2671.0,5.0484268]
[1643821167855,0.00288508,2671.2,2671.0,5.05269529]
[1643821168906,0.00288508,2671.2,2671.0,5.0484268]
[1643821169112,0.00288508,2671.2,2671.0,5.05274535]
[1643821169308,0.55195484,2671.5,2671.0,5.05274535]
[1643821169509,0.55195484,2671.5,2671.0,4.11662435]
[1643821169709,0.55195484,2671.5,2671.0,1.91662435]
[1643821170111,0.55195484,2671.5,2671.0,1.9123058]
[1643821170409,0.55195484,2671.5,2671.1,0.00431845]
[1643821170410,0.17112137,2671.2,2671.1,0.00431845]
[1643821171110,0.72307621,2671.2,2671.1,0.00431845]
[1643821171510,0.72307621,2671.2,2671.0,0.0443145]
[1643821171713,0.55195484,2671.1,2670.7,1.1880145]
[1643821171916,0.93643,2671.0,2670.7,1.1880145]
[1643821172110,0.55195484,2670.9,2670.6,0.56892276]
[1643821172566,0.55195484,2670.9,2670.6,0.55166217]
[1643821172761,0.55195484,2670.9,2670.5,0.00195114]
[1643821172961,0.7100495,2670.8,2670.5,0.00195114]
[1643821173163,1.26200434,2670.8,2669.8,0.93279027]
[1643821173361,0.7100495,2670.6,2669.8,0.93279027]
[1643821173560,0.7100495,2670.6,2669.7,0.00195114]
[1643821173561,1.86979365,2670.4,2669.9,0.93279027]
[1643821173761,0.73915484,2670.3,2669.4,0.93474141]
[1643821174062,0.20519592,2669.8,2669.5,0.93353336]
[1643821174267,0.20519592,2669.8,2669.6,0.9354845]
[1643821174459,0.20519592,2669.8,2669.7,3.48353336]
[1643821174959,0.20519592,2669.8,2669.7,0.93353336]
[1643821175262,0.93682,2669.9,2669.7,0.93353336]
[1643821175461,0.93682,2669.9,2669.8,0.93353336]
[1643821175659,1.59796041,2669.9,2669.8,3.18353336]
[1643821176314,0.93682,2669.9,2669.8,3.18353336]
[1643821176518,0.1872,2670.2,2669.8,3.25147979]
[1643821176717,0.1872,2670.7,2670.1,0.01200312]
[1643821176921,0.1872,2670.9,2670.1,0.01200312]
[1643821177119,0.7100495,2671.3,2670.2,0.1872]
[1643821177316,0.1872,2671.4,2670.7,0.01233414]
[1643821177516,1.42051934,2672.1,2670.7,0.01233414]
[1643821177517,0.7100495,2671.7,2671.0,0.91041862]
[1643821177717,0.7100495,2671.8,2671.1,2.187]
[1643821177917,0.00508358,2671.6,2671.3,0.01253658]
[1643821178126,0.00508358,2671.6,2671.4,0.187]
[1643821178318,0.00508358,2671.6,2671.5,5.88683]
[1643821178516,0.7100495,2672.2,2672.0,0.77650577]
[1643821178719,0.7100495,2672.5,2672.0,2.64797287]
[1643821178918,0.7100495,2672.7,2672.0,3.88371287]
[1643821179219,0.7100495,2672.7,2672.1,1.0]
[1643821179421,0.7100495,2672.9,2672.1,1.72583]
[1643821179619,0.7100495,2673.0,2672.7,0.9444084]
[1643821179861,0.7100495,2673.1,2672.7,1.8798322]
[1643821180070,0.7100495,2673.1,2672.8,1.23543]
[1643821180363,0.7100495,2673.1,2672.7,0.9354238]
[1643821180562,0.7100495,2673.1,2672.7,0.3]
[1643821180760,0.7100495,2673.1,2672.6,1.8708475]
[1643821181162,0.7100495,2673.2,2672.7,2.1709979]
[1643821181363,0.7100495,2673.3,2672.7,2.1709979]
[1643821182261,0.7100495,2673.4,2672.7,2.91225609]
[1643821182461,0.00471054,2673.1,2672.7,1.8709979]
[1643821182662,0.00471054,2673.1,2672.4,0.187]
[1643821182663,0.7100495,2673.0,2672.4,0.187]
[1643821182863,0.7100495,2672.9,2672.1,0.187]
[1643821183263,1.13917005,2673.1,2672.2,0.9357803]
[1643821183264,0.7100495,2672.8,2672.2,0.9357803]
[1643821183510,1.13917005,2673.1,2672.7,0.80460893]
[1643821183511,0.7100495,2672.9,2672.7,0.80460893]
[1643821183712,0.8970495,2673.1,2672.7,0.80460893]
[1643821183914,0.187,2673.1,2672.3,1.8713163]
[1643821184111,0.73040619,2673.2,2672.4,0.487]
[1643821184310,0.73040619,2673.2,2672.4,0.3]
[1643821184311,0.02035669,2673.2,2672.4,0.3]
[1643821184912,0.00509004,2672.9,2672.6,0.869064]
[1643821185813,0.187,2673.1,2672.6,0.869064]
[1643821186014,0.00509008,2672.9,2672.6,0.869064]
[1643821186415,0.00509008,2672.9,2672.4,0.3]
[1643821186914,1.08100995,2673.2,2672.4,0.3]
[1643821187116,0.37096045,2673.2,2672.1,0.487]
[1643821187364,0.00492218,2672.8,2672.3,0.93428123]
[1643821187561,0.00492218,2672.8,2672.1,0.187]
[1643821187562,0.17969837,2672.7,2672.1,0.187]
[1643821188561,0.21912051,2672.2,2672.0,0.3981]
[1643821188759,0.00492236,2672.5,2672.0,0.3981]
[1643821188961,0.19192236,2672.5,2672.0,0.3981]
[1643821189161,0.00492236,2672.5,2672.0,0.3981]
[1643821189462,0.187,2672.7,2672.0,0.3981]
[1643821189663,0.00492247,2672.4,2672.0,0.3981]
[1643821190061,0.00492247,2672.4,2672.0,0.96263483]
[1643821190263,0.00492247,2672.4,2671.9,0.37541258]
[1643821190662,0.00492247,2672.4,2671.9,0.94607664]
[1643821190864,0.00470392,2672.3,2671.9,0.94607664]
[1643821191409,0.16532077,2672.3,2671.9,0.94607664]
[1643821191805,0.16061685,2672.3,2671.9,0.94607664]
[1643821192006,0.00470399,2672.2,2671.9,1.24607664]
[1643821192806,0.00470399,2672.2,2671.9,0.87066406]
[1643821193106,0.16061685,2672.3,2671.9,0.87066406]
[1643821193407,0.00470402,2672.2,2671.9,0.57066406]
[1643821194208,0.16061685,2672.3,2671.9,0.57066406]
[1643821194408,0.004736,2672.2,2671.9,0.57066406]
[1643821195659,0.187,2672.7,2671.9,0.57066406]
[1643821195869,0.004736,2672.2,2671.9,0.57066406]
[1643821196462,0.187,2672.1,2671.9,0.57066406]
[1643821196662,0.60163121,2672.0,2671.9,0.57066406]
[1643821196864,0.78589065,2672.0,2671.9,0.57066406]
[1643821200907,3.73589065,2672.0,2671.9,0.25086847]
[1643821201108,3.92289065,2672.0,2671.9,0.25086847]
[1643821201905,5.38930479,2672.0,2671.9,0.25086847]
[1643821202106,6.38930479,2672.0,2671.9,0.25086847]
[1643821202363,4.3,2671.9,2671.2,0.00440331]
[1643821202658,1.53794121,2671.8,2670.9,0.56429252]
[1643821202870,0.78863121,2671.7,2670.9,0.56429252]
[1643821203059,0.60163121,2671.6,2671.2,0.00440331]
[1643821203264,0.726,2671.5,2671.2,0.00440331]
[1643821203460,4.04505627,2671.4,2671.2,0.00440331]
[1643821203663,5.07763121,2671.3,2671.2,0.00440331]
[1643821203864,5.07763121,2671.3,2670.9,0.56429252]
[1643821204061,0.60163121,2671.2,2670.9,0.56429252]
[1643821204263,0.187,2671.1,2670.9,0.56429252]
[1643821204461,0.60163121,2671.0,2670.9,0.56429252]
[1643821204864,1.25425552,2671.0,2670.9,0.56429252]
[1643821205368,4.50425552,2671.0,2670.9,0.56429252]
[1643821205763,1.25425552,2671.0,2670.9,0.56429252]
[1643821206209,1.25425552,2671.0,2670.8,0.00475071]
[1643821206409,0.60163121,2670.9,2670.8,0.00475071]
[1643821206608,0.79376592,2670.9,2670.8,0.00475071]
[1643821206808,1.44639023,2670.9,2670.8,0.00475071]
[1643821207208,1.44639023,2670.9,2670.3,0.00195114]
[1643821207209,1.44639023,2670.9,2670.3,0.00200795]
[1643821207409,0.60163121,2670.8,2670.3,0.00200795]
[1643821207808,0.60163121,2670.8,2669.9,0.1872]
[1643821207809,0.60163121,2670.7,2670.0,0.00200795]
[1643821208014,0.93663,2670.8,2670.1,0.1872]
[1643821208210,0.65262431,2670.4,2670.1,0.1872]
[1643821208410,0.65262431,2670.4,2670.2,0.00200795]
[1643821208611,0.20678526,2670.6,2670.2,0.00200795]
[1643821208810,0.93663,2670.8,2670.2,0.00200795]
[1643821209010,0.93663,2670.8,2670.1,0.00179082]
[1643821209213,1.1238,2671.1,2670.3,0.01230756]
[1643821209214,0.1872,2671.1,2670.3,0.01230756]
[1643821209413,0.44634055,2670.4,2670.3,0.01230756]
[1643821209869,0.44634055,2670.4,2670.2,0.00200795]
[1643821210269,0.00475987,2670.5,2670.3,4.77369]
[1643821210471,0.00475987,2670.5,2670.3,1.12369]
[1643821211272,0.44634055,2670.6,2670.4,0.84533943]
[1643821211473,0.00475992,2670.5,2670.4,0.84533943]
[1643821211872,0.44634055,2670.6,2670.5,5.7]
[1643821211873,0.37236081,2670.6,2670.5,5.7]
[1643821212074,0.37236081,2670.6,2670.5,5.89959192]
[1643821212273,0.1872,2672.0,2670.6,4.25]
[1643821212474,0.61779307,2671.9,2670.9,1.8722544]
[1643821212672,0.61779307,2671.9,2671.0,0.187]
[1643821212873,0.65262431,2671.4,2671.0,0.187]
[1643821213073,0.65262431,2671.4,2671.0,0.98761322]
[1643821213280,0.7100495,2672.2,2671.4,0.22439951]
[1643821213510,0.61801405,2672.1,2671.5,3.32188485]
[1643821213707,0.12903565,2672.6,2671.6,0.487]
[1643821213708,0.61801405,2672.0,2671.6,0.487]
[1643821213910,0.12903565,2672.6,2671.7,2.55852759]
[1643821214108,0.12903565,2672.6,2671.8,0.726]
[1643821214109,0.01007297,2672.1,2671.8,0.726]
[1643821214308,0.01007297,2672.1,2672.0,4.27665875]
[1643821214507,0.01007297,2672.1,2672.0,1.47467]
[1643821214707,0.01007297,2672.1,2671.8,0.487]
[1643821214907,0.01007297,2672.1,2671.8,0.187]
[1643821215106,0.12903565,2672.6,2671.8,0.187]
[1643821215107,0.61796952,2672.0,2671.8,0.187]
[1643821215307,0.61796952,2671.9,2671.8,0.187]
[1643821215708,3.11796952,2671.9,2671.8,0.187]
[1643821216011,3.95759383,2671.9,2671.8,0.187]
[1643821216406,1.45759383,2671.9,2670.7,0.187]
[1643821216606,1.45759383,2671.9,2671.0,0.19189548]
[1643821216607,0.61796952,2671.8,2671.0,0.19189548]
[1643821216807,0.61796952,2671.8,2671.1,0.187]
[1643821217006,0.61796952,2671.7,2671.1,0.187]
[1643821217260,0.187,2672.3,2671.2,0.82523415]
[1643821217261,2.80304829,2672.3,2671.2,0.82523415]
[1643821217461,2.80304829,2672.3,2671.1,0.93608]
[1643821217462,0.65262431,2671.6,2671.1,0.93608]
[1643821217661,0.00473578,2671.6,2671.1,0.93608]
[1643821217861,0.00473578,2671.6,2671.1,1.11062219]
[1643821218460,0.1791148,2672.1,2671.1,1.11062219]
[1643821218668,0.83631192,2672.0,2671.3,0.74445719]
[1643821218863,0.00473586,2671.5,2671.3,0.74445719]
[1643821219763,0.187,2672.0,2671.3,0.74445719]
[1643821219962,0.00473582,2671.5,2671.3,0.74445719]
[1643821220563,0.65262431,2671.4,2671.1,0.93608]
[1643821220863,0.187,2672.0,2671.0,0.187]
[1643821221118,0.00469543,2671.5,2671.0,0.187]
[1643821221318,0.65034788,2671.4,2671.0,0.187]
[1643821222013,0.65262431,2671.2,2671.0,0.187]
[1643821222212,0.00469543,2671.5,2671.0,0.187]
[1643821222213,0.22201214,2671.5,2671.0,0.187]
[1643821222413,0.22201214,2671.5,2670.7,0.75464865]
[1643821222414,0.00469557,2671.3,2670.7,0.75464865]
[1643821223413,0.21717373,2671.8,2670.7,0.75464865]
[1643821223614,0.00469571,2671.1,2670.7,0.75464865]
[1643821224615,1.22234193,2671.7,2670.7,0.75464865]
[1643821224856,0.00509799,2671.0,2670.7,0.75464865]
[1643821225056,0.65262431,2670.8,2670.7,0.75464865]
[1643821225260,0.65262431,2670.8,2670.7,5.60464865]
[1643821225556,0.65262431,2670.8,2670.7,0.00200795]
[1643821225758,0.65262431,2670.8,2670.6,0.187]
[1643821225956,0.65262431,2670.8,2670.5,0.00200795]
[1643821225957,0.9484,2670.8,2670.5,0.00200795]
[1643821226759,0.65262431,2670.6,2670.5,0.00200795]
[1643821226958,0.65262431,2670.6,2670.4,0.86783072]
[1643821227159,0.00509811,2670.9,2670.4,0.86783072]
[1643821227459,0.1872,2671.2,2670.4,0.86783072]
[1643821227460,0.00509819,2670.8,2670.4,0.86783072]
[1643821227661,0.00509819,2670.8,2670.5,0.00200795]
[1643821228262,0.65262431,2670.6,2670.5,0.00200795]
[1643821228511,0.65262431,2670.6,2670.4,0.86783072]
[1643821228916,0.00447818,2670.8,2670.3,0.19368692]
[1643821229112,0.00447818,2670.8,2670.3,0.00447897]
[1643821229312,0.65995804,2670.7,2670.3,0.00447897]
[1643821229512,0.1872,2670.6,2670.3,0.00447897]
[1643821229710,0.1872,2670.6,2670.3,0.00447887]
[1643821229711,0.65995804,2670.5,2670.3,0.00447887]
[1643821229910,0.35071028,2670.4,2670.3,0.00447887]
[1643821230112,1.01066832,2670.4,2670.3,0.00447887]
[1643821230314,1.01066832,2670.4,2670.2,0.00103417]
[1643821230516,0.65995804,2670.3,2670.2,0.00103417]
[1643821231013,0.65995804,2670.3,2670.2,0.00447884]
[1643821231213,2.05967853,2670.3,2670.2,0.00447884]
[1643821231421,4.26077262,2670.3,2670.2,0.00447884]
[1643821231813,5.56077262,2670.3,2669.8,0.00508626]
[1643821232016,5.56077262,2670.3,2670.1,0.00466659]
[1643821232017,2.59686804,2670.2,2670.1,0.00466659]
[1643821232461,4.7296364,2670.2,2670.1,0.00466659]
[1643821232659,3.7296364,2670.2,2670.1,0.00466659]
[1643821232860,3.24949235,2670.2,2670.1,0.00466659]
[1643821233061,3.24949235,2670.2,2669.8,0.00508626]
[1643821233062,6.34872735,2670.2,2669.8,0.00508626]
[1643821233261,6.34872735,2670.2,2668.7,5.74360128]
[1643821233262,4.25,2669.8,2668.7,0.01201128]
[1643821233461,4.25,2669.8,2668.8,0.87221122]
[1643821233462,0.99999999,2669.5,2668.8,0.87221122]
[1643821233662,2.1872,2669.4,2668.5,0.1873]
[1643821233859,0.99999999,2669.2,2668.6,0.85043803]
[1643821234063,0.1872,2669.4,2667.9,0.1872]
[1643821234064,1.7056764,2669.1,2667.9,0.1872]
[1643821234263,1.7056764,2669.1,2667.3,0.68879421]
[1643821234264,0.74039879,2668.6,2667.3,0.68879421]
[1643821234463,0.1638023,2668.2,2667.4,0.1874]
[1643821234662,2.65,2668.5,2667.4,0.1874]
[1643821234861,0.1874,2668.4,2667.2,0.1874]
[1643821235061,1.0,2668.4,2667.2,0.1874]
[1643821235260,0.1874,2668.5,2667.2,0.1874]
[1643821235862,0.65262431,2667.8,2667.7,0.00172844]
[1643821236115,1.94765288,2668.6,2667.7,4.30172844]
[1643821236311,3.0706316,2668.6,2667.7,4.30172844]
[1643821236514,0.94765288,2668.6,2667.7,4.3]
[1643821236716,1.0,2668.5,2667.7,4.3]
[1643821237012,1.0,2668.5,2668.0,0.00472949]
[1643821237215,0.1872,2669.0,2668.0,0.00472949]
[1643821237514,0.18527104,2668.1,2668.0,0.00472949]
[1643821237714,0.28626193,2668.7,2668.0,0.75426802]
[1643821237915,0.28626193,2668.7,2668.1,0.32502997]
[1643821238119,0.09886193,2668.7,2668.2,0.6616175]
[1643821238317,0.09886193,2668.7,2668.4,0.00472927]
[1643821238514,0.09886193,2668.7,2668.5,0.6372]
[1643821238815,0.09886193,2668.7,2668.6,5.7]
[1643821239014,0.09886193,2668.7,2668.6,6.15]
[1643821239219,0.03017373,2669.1,2668.7,5.7]
[1643821239415,0.03017373,2669.1,2668.7,5.731422]
[1643821239617,0.03017373,2669.1,2668.8,1.45]
[1643821239862,0.03017373,2669.1,2668.8,1.93683]
[1643821240262,0.12903566,2669.2,2669.0,5.88683]
[1643821240463,0.12903566,2669.2,2669.1,0.45]
[1643821240662,0.12903566,2669.2,2669.1,3.7]
[1643821240961,0.12903566,2669.2,2669.1,3.8872]
[1643821241162,0.12903566,2669.2,2669.1,0.6372]
[1643821241366,0.12903566,2669.2,2668.9,0.1872]
[1643821241561,0.12903566,2669.2,2668.8,0.1872]
[1643821241768,0.12903566,2669.2,2669.0,0.00475243]
[1643821242561,0.12903566,2669.2,2668.4,1.04895328]
[1643821242761,0.1872,2669.1,2668.4,0.86175328]
[1643821242961,0.1872,2669.1,2669.0,0.00509697]
[1643821243611,0.83982431,2669.1,2669.0,0.00509697]
[1643821243810,0.83982431,2669.1,2668.2,0.1872]
[1643821244011,0.83982431,2669.1,2668.9,0.005097]
[1643821244214,0.1872,2669.1,2668.9,0.005097]
[1643821245012,0.65262431,2669.0,2668.2,0.69300321]
[1643821245310,0.1872,2669.1,2668.9,0.00509704]
[1643821245512,0.15828757,2669.0,2668.9,0.00509704]
[1643821246311,0.15828757,2669.0,2668.1,0.46359994]
[1643821246513,0.1872,2668.9,2668.8,0.00510144]
[1643821246711,0.12903566,2669.2,2668.8,0.00510144]
[1643821246712,0.1872,2669.1,2668.8,0.00510144]
[1643821247364,0.1872,2669.1,2668.1,0.27639994]
[1643821247567,0.16810936,2669.0,2668.1,0.27639994]
[1643821247765,0.1872,2668.9,2668.8,0.00510144]
[1643821247964,2.4872,2668.9,2668.8,0.00510144]
[1643821248165,0.83982431,2668.9,2668.8,0.00510144]
[1643821248565,0.83982431,2668.9,2668.1,0.99031873]
[1643821248767,0.1872,2668.9,2668.1,0.99031873]
[1643821248964,0.1872,2668.9,2668.7,0.00510152]
[1643821249665,0.65262431,2668.8,2668.7,0.00510152]
[1643821249866,0.65262431,2668.8,2668.1,0.99031873]
[1643821250065,0.16810936,2669.0,2668.1,0.99031873]
[1643821250066,0.16810936,2669.0,2668.7,0.00509633]
[1643821250467,0.1872,2669.1,2668.7,0.00018893]
[1643821250865,0.1372,2669.1,2668.7,0.00018893]
[1643821251109,0.1372,2669.1,2668.2,0.00200728]
[1643821251110,0.65262431,2668.9,2668.2,0.00200728]
[1643821251312,0.1372,2669.1,2668.2,0.00200728]
[1643821251513,0.1372,2669.1,2668.2,2.41313219]
[1643821251812,0.1372,2669.1,2668.3,0.45200728]
[1643821252013,0.12903566,2669.2,2668.4,2.40642908]
[1643821252210,0.12903566,2669.2,2668.5,0.00200728]
[1643821252410,0.12903566,2669.2,2668.6,0.73020922]
[1643821252611,0.65262431,2668.8,2668.5,0.00200728]
[1643821252812,0.13204654,2669.2,2668.5,0.00200728]
[1643821253013,0.13204654,2669.2,2668.5,0.18920728]
[1643821253312,0.13204654,2669.2,2668.6,0.00200728]
[1643821253512,0.12903566,2669.2,2668.6,0.00200728]
[1643821253813,0.13413617,2669.2,2668.6,0.00710909]
[1643821254214,0.65262431,2668.9,2668.6,0.00710909]
[1643821254619,0.12903566,2669.2,2668.6,0.00200728]
[1643821254861,0.1584473,2668.9,2668.6,0.00710898]
[1643821255462,0.1584473,2668.9,2668.6,0.0051017]
[1643821255463,0.82445018,2668.7,2668.6,0.0051017]
[1643821255863,0.82445018,2668.7,2668.3,0.00200728]
[1643821256061,0.65262431,2668.8,2668.5,0.00510168]
[1643821256261,0.93727,2669.1,2668.5,0.00510168]
[1643821256462,0.1872,2669.0,2668.5,0.00510168]
[1643821256662,0.4872,2669.0,2668.5,0.00510168]
[1643821257061,0.18749013,2668.6,2668.1,0.00200728]
[1643821257266,0.65262431,2668.8,2668.6,0.0051017]
[1643821257463,0.1872,2669.0,2668.6,0.0051017]
[1643821257863,0.1872,2669.1,2668.6,0.0051017]
[1643821258264,0.1872,2669.1,2668.3,0.00200728]
[1643821258518,0.19020515,2668.8,2668.3,0.00200728]
[1643821258710,0.19020515,2668.8,2668.6,0.00510181]
[1643821259508,0.19020515,2668.8,2668.1,0.8017404]
[1643821259709,0.19020515,2668.8,2668.6,0.00510164]
[1643821260308,0.65262431,2668.7,2668.6,0.00510164]
[1643821260707,0.65262431,2668.7,2668.2,0.00200728]
[1643821261108,0.19020515,2668.8,2668.6,0.00510164]
[1643821261909,0.83982431,2668.7,2668.0,0.00200728]
[1643821262108,0.83982431,2668.7,2667.8,0.00200728]
[1643821262364,0.1872,2668.7,2668.6,0.00510164]
[1643821263465,0.83982431,2668.7,2668.5,0.00209706]
[1643821263664,0.65262431,2668.7,2668.5,0.00209706]
[1643821263865,0.37740515,2668.8,2668.5,0.00209706]
[1643821264064,0.19020515,2668.8,2668.5,0.00209706]
[1643821264264,0.19020515,2668.8,2668.0,0.00200728]
[1643821264664,0.1872,2669.0,2668.0,0.00200728]
[1643821264665,0.19586667,2668.2,2668.0,0.00200728]
[1643821265766,0.19586667,2668.2,2668.0,0.00209702]
[1643821266414,4.30262431,2668.1,2668.0,0.00209702]
[1643821266816,4.30262431,2668.1,2667.4,0.18940728]
[1643821266817,6.12008416,2668.1,2667.4,0.18940728]
[1643821267014,6.12008416,2668.1,2667.6,0.00838935]
[1643821267015,0.1874,2668.0,2667.6,0.00838935]
[1643821267218,5.74999999,2667.7,2667.6,0.00838935]
[1643821267620,5.93739999,2667.7,2667.6,0.00838935]
[1643821267815,5.9374,2667.7,2667.6,0.00838935]
[1643821268017,6.59002431,2667.7,2667.6,0.00838935]
[1643821268216,6.59002431,2667.7,2667.5,0.00511605]
[1643821268417,4.2874,2667.6,2667.5,0.00511605]
[1643821269119,4.2874,2667.6,2666.6,0.00200728]
[1643821269120,4.6,2667.5,2666.6,0.00200728]
[1643821269320,0.99999999,2667.3,2666.6,0.00200728]
[1643821269519,0.99999999,2667.3,2665.9,0.01]
[1643821269520,0.67911004,2667.1,2667.0,0.02019068]
[1643821269769,2.17346034,2667.1,2667.0,0.02019068]
[1643821270165,3.17346034,2667.1,2667.0,9.068e-05]
[1643821270363,2.12549,2667.2,2666.1,0.00200728]
[1643821270561,2.32736554,2667.2,2666.1,0.00200728]
[1643821270761,0.3,2667.6,2666.1,0.00200728]
[1643821270762,1.1875,2667.4,2666.6,0.86298886]
[1643821270964,0.65262431,2666.8,2666.7,0.00200728]
[1643821271161,0.86314397,2666.8,2666.7,0.00200728]
[1643821271363,0.21051966,2666.8,2666.7,0.00200728]
[1643821271560,0.21051966,2666.8,2666.4,0.1874]
[1643821272363,0.21051966,2666.8,2666.3,0.88731237]
[1643821272562,0.65262431,2666.6,2666.3,0.88731237]
[1643821272764,0.21051966,2666.8,2666.4,0.00200728]
[1643821272961,0.1875,2667.3,2666.4,0.00200728]
[1643821273162,0.00511553,2667.1,2666.5,0.1874]
[1643821274010,0.99829746,2667.4,2666.6,0.00200728]
[1643821274210,0.65262431,2666.9,2666.6,0.00200728]
[1643821274410,0.00511581,2667.1,2666.7,0.00511671]
[1643821274610,0.2108762,2666.8,2666.7,0.00511671]
[1643821275011,0.00511581,2667.1,2666.3,0.0126523]
[1643821275210,0.3525939,2667.4,2666.3,0.0126523]
[1643821275211,0.1651939,2667.4,2666.3,0.0126523]
[1643821275612,0.65262431,2666.8,2666.7,1.70524545]
[1643821275811,0.13502017,2667.7,2666.7,7.34207545]
[1643821276012,0.13502017,2667.7,2667.6,0.9214145]
[1643821276214,0.13502017,2667.7,2666.8,0.02651678]
[1643821276412,0.13502017,2667.7,2667.1,0.45]
[1643821277114,0.1629566,2667.5,2667.1,0.45]
[1643821277364,0.1629566,2667.5,2667.2,0.88031313]
[1643821277561,0.1629566,2667.5,2667.2,0.1874]